[Event "2nd Gujarat Open 2019"]
[Site "Ahmedabad, Gujarat"]
[Date "2019.09.28"]
[Round "9.29"]
[White "Arun Rathee"]
[Black "Srija, Seshadri"]
[Result "0-1"]
[ECO "A09"]
[WhiteElo "1959"]
[BlackElo "2270"]
[Annotator "NA"]
[PlyCount "148"]
[EventDate "2019.09.22"]
[EventType "swiss"]
[EventCountry "IND"]
[SourceTitle "playchess.com"]
[Source "ChessBase"]
[SourceQuality "1"]
[TimeControl "5400+30"]

1. Nf3 {[%emt 0:00:00]} d5 {[%emt 0:00:00]} 2. c4 {[%emt 0:00:25]} d4 {[%emt 0:00:19]} 3. g3 {[%emt 0:05:09]} c5 {[%emt 0:00:20]} 4. b4 {[%emt 0:01:20]} cxb4 {[%emt 0:00:43]} 5. a3 {[%emt 0:00:07]} b3 {[%emt 0:00:48]} 6. Qxb3 {[%emt 0:01:27]} Nc6 {[%emt 0:00:40]} 7. Bg2 {[%emt 0:01:27]} e5 {[%emt 0:01:03]} 8. d3 {[%emt 0:00:14]} Bd6 {[%emt 0:00:33]} 9. O-O {[%emt 0:01:35]} Nge7 {[%emt 0:00:33]} 10. Nbd2 {[%emt 0:08:05]} O-O {[%emt 0:01:35]} 11. Ne4 {[%emt 0:11:09]} Bc7 {[%emt 0:00:27]} 12. a4 {[%emt 0:01:33]} Ng6 {[%emt 0:07:04]} 13. Ba3 {[%emt 0:05:09]} Re8 {[%emt 0:00:11]} 14. c5 {[%emt 0:02:33]} Na5 {[%emt 0:06:54]} 15. Qb2 {[%emt 0:03:33]} Be6 {[%emt 0:06:52]} 16. Nfd2 {[%emt 0:01:22]} Rb8 {[%emt 0:01:38]} 17. Nd6 {[%emt 0:15:24]} Bxd6 {[%emt 0:14:06]} 18. cxd6 {[%emt 0:00:02]} Bd7 {[%emt 0:06:52]} 19. Rfc1 {[%emt 0:07:22]} Bc6 {[%emt 0:01:31]} 20. Nc4 {[%emt 0:06:31]} Bxg2 {[%emt 0:02:54]} 21. Kxg2 {[%emt 0:00:13]} Nc6 {[%emt 0:00:47]} 22. Rab1 {[%emt 0:02:30]} Re6 {[%emt 0:07:14]} 23. Nd2 {[%emt 0:01:48]} Qd7 {[%emt 0:03:19]} 24. Ne4 {[%emt 0:07:35]} Ree8 {[%emt 0:00:43]} 25. h3 {[%emt 0:01:25]} Nf8 {[%emt 0:05:58]} 26. Qb5 {[%emt 0:02:53]} Ne6 {[%emt 0:01:45]} 27. a5 {[%emt 0:01:04]} f5 {[%emt 0:03:35]} 28. Nc5 {[%emt 0:01:10]} Nxc5 {[%emt 0:00:23]} 29. Qxc5 {[%emt 0:00:14]} a6 {[%emt 0:09:29]} 30. Qb6 {[%emt 0:01:51]} Kf7 {[%emt 0:02:30]} 31. Qc7 {[%emt 0:00:53]} Ke6 {[%emt 0:00:21]} 32. Kh2 {[%emt 0:02:59]} Rec8 {[%emt 0:00:47]} 33. Qb6 {[%emt 0:04:00]} Qe8 {[%emt 0:03:08]} 34. Rc2 {[%emt 0:01:44]} Kd7 {[%emt 0:00:50]} 35. Rbc1 {[%emt 0:00:19]} f4 {[%emt 0:02:17]} 36. Kg2 {[%emt 0:01:47]} Qf7 {[%emt 0:02:09]} 37. g4 {[%emt 0:00:54]} h5 {[%emt 0:02:18]} 38. f3 {[%emt 0:00:01]} Qf6 {[%emt 0:00:43]} 39. Qb3 {[%emt 0:00:51]} hxg4 {[%emt 0:00:57]} 40. fxg4 {[%emt 0:00:38]} Qe6 {[%emt 0:03:05]} 41. Qxe6+ {[%emt 0:00:29]} Kxe6 {[%emt 0:00:01]} 42. h4 {[%emt 0:00:23]} Rh8 {[%emt 0:00:55]} 43. Rh1 {[%emt 0:00:46]} Rbc8 {[%emt 0:00:49]} 44. Rc5 {[%emt 0:00:17]} Na7 {[%emt 0:00:28]} 45. h5 {[%emt 0:00:34]} Nb5 {[%emt 0:01:19]} 46. Bb4 {[%emt 0:00:01]} Nxd6 {[%emt 0:00:27]} 47. Rhc1 {[%emt 0:00:24]} Rxc5 {[%emt 0:00:34]} 48. Rxc5 {[%emt 0:00:13]} Nb5 {[%emt 0:00:43]} 49. Kh3 {[%emt 0:00:44]} g6 {[%emt 0:00:23]} 50. Kh4 {[%emt 0:00:01]} gxh5 {[%emt 0:00:13]} 51. gxh5 {[%emt 0:00:16]} Rg8 {[%emt 0:01:23]} 52. Kh3 {[%emt 0:01:55]} Rg3+ {[%emt 0:00:28]} 53. Kh2 {[%emt 0:00:02]} Rg5 {[%emt 0:00:40]} 54. Rc8 {[%emt 0:00:16]} Rxh5+ {[%emt 0:00:05]} 55. Kg2 {[%emt 0:00:02]} Kd7 {[%emt 0:00:30]} 56. Rb8 {[%emt 0:01:05]} Kc7 {[%emt 0:00:38]} 57. Re8 {[%emt 0:00:02]} Nc3 {[%emt 0:00:39]} 58. Re7+ {[%emt 0:01:13]} Kc6 {[%emt 0:00:01]} 59. Re6+ {[%emt 0:00:17]} Kd7 {[%emt 0:00:53]} 60. Re7+ {[%emt 0:00:04]} Kc8 {[%emt 0:00:45]} 61. Re8+ {[%emt 0:00:03]} Kc7 {[%emt 0:00:05]} 62. Re7+ {[%emt 0:00:07]} Kc6 {[%emt 0:00:39]} 63. Re6+ {[%emt 0:00:06]} Kb5 {[%emt 0:00:29]} 64. Rb6+ {[%emt 0:00:41]} Ka4 {[%emt 0:00:01]} 65. Rxb7 {[%emt 0:02:16]} Nxe2 {[%emt 0:00:02]} 66. Bd6 {[%emt 0:00:53]} Kxa5 {[%emt 0:01:10]} 67. Kf3 {[%emt 0:00:19]} Nc1 {[%emt 0:01:13]} 68. Ke4 {[%emt 0:00:26]} f3 69. Kxf3 {[%emt 0:00:20]} Nxd3 {[%emt 0:00:39]} 70. Ke4 {[%emt 0:00:01]} Nf2+ {[%emt 0:00:29]} 71. Kd5 {[%emt 0:00:01]} d3 {[%emt 0:00:13]} 72. Kc4 {[%emt 0:00:10]} d2 {[%emt 0:00:29]} 73. Rb2 {[%emt 0:00:35]} Rh4+ {[%emt 0:00:18]} 74. Kd5 {[%emt 0:00:22]} d1=Q+ {[%emt 0:00:04]} 0-1

[Event "2nd Gujarat Open 2019"]
[Site "Ahmedabad, Gujarat"]
[Date "2019.09.28"]
[Round "9.30"]
[White "Alan Diviya Raj"]
[Black "Nayak Rajesh"]
[Result "1-0"]
[ECO "B00"]
[WhiteElo "1943"]
[BlackElo "2227"]
[Annotator "NA"]
[PlyCount "105"]
[EventDate "2019.09.22"]
[EventType "swiss"]
[EventCountry "IND"]
[SourceTitle "playchess.com"]
[Source "ChessBase"]
[SourceQuality "1"]
[TimeControl "5400+30"]

1. e4 {[%emt 0:00:00]} d6 {[%emt 0:00:48]} 2. d4 {[%emt 0:00:00]} e5 {[%emt 0:00:08]} 3. dxe5 {[%emt 0:00:00]} dxe5 {[%emt 0:00:07]} 4. Qxd8+ {[%emt 0:00:00]} Kxd8 {[%emt 0:00:03]} 5. Bc4 {[%emt 0:00:15]} f6 {[%emt 0:00:35]} 6. Nc3 {[%emt 0:00:18]} Bc5 {[%emt 0:00:16]} 7. f4 {[%emt 0:01:03]} Nd7 {[%emt 0:01:09]} 8. Nf3 {[%emt 0:00:24]} c6 {[%emt 0:00:43]} 9. fxe5 {[%emt 0:01:57]} Nxe5 {[%emt 0:00:25]} 10. Nxe5 {[%emt 0:04:21]} fxe5 {[%emt 0:00:18]} 11. Bg5+ {[%emt 0:00:23]} Nf6 {[%emt 0:00:29]} 12. O-O-O+ {[%emt 0:01:40]} Ke7 {[%emt 0:00:13]} 13. h3 {[%emt 0:00:20]} b5 {[%emt 0:04:27]} 14. Bb3 {[%emt 0:05:40]} h6 {[%emt 0:01:01]} 15. Bh4 {[%emt 0:02:08]} a5 {[%emt 0:09:11]} 16. a3 {[%emt 0:03:29]} a4 {[%emt 0:01:28]} 17. Ba2 {[%emt 0:00:12]} Be6 {[%emt 0:02:05]} 18. Bxe6 {[%emt 0:00:30]} Kxe6 {[%emt 0:00:06]} 19. Bxf6 {[%emt 0:02:36]} gxf6 {[%emt 0:01:42]} 20. Rd3 {[%emt 0:00:07]} Rag8 {[%emt 0:00:28]} 21. g3 {[%emt 0:00:12]} Rd8 {[%emt 0:03:38]} 22. Rhd1 {[%emt 0:00:39]} Rxd3 {[%emt 0:00:40]} 23. Rxd3 {[%emt 0:00:05]} h5 {[%emt 0:00:07]} 24. Ne2 {[%emt 0:00:08]} Rf8 {[%emt 0:05:03]} 25. Rc3 {[%emt 0:00:22]} Kd6 {[%emt 0:00:08]} 26. Rf3 {[%emt 0:00:50]} Ke6 {[%emt 0:00:36]} 27. Rc3 {[%emt 0:00:08]} Kd6 {[%emt 0:01:27]} 28. Rf3 {[%emt 0:00:07]} Bb6 {[%emt 0:06:27]} 29. c4 {[%emt 0:06:14]} Ba5 {[%emt 0:05:15]} 30. Rf5 {[%emt 0:06:01]} Kc5 {[%emt 0:01:57]} 31. cxb5 {[%emt 0:00:41]} cxb5 {[%emt 0:00:12]} 32. Rxh5 {[%emt 0:05:56]} Kc4 {[%emt 0:00:49]} 33. Kc2 {[%emt 0:13:53]} Rd8 {[%emt 0:01:25]} 34. Nc1 {[%emt 0:00:04]} Rd2+ {[%emt 0:04:08]} 35. Kb1 {[%emt 0:00:07]} Rg2 {[%emt 0:00:19]} 36. Rh8 {[%emt 0:06:19]} Kd4 {[%emt 0:01:17]} 37. b4 {[%emt 0:00:06]} axb3 {[%emt 0:12:26]} 38. Nxb3+ {[%emt 0:00:07]} Kxe4 {[%emt 0:01:11]} 39. Nxa5 {[%emt 0:00:31]} Rxg3 {[%emt 0:00:06]} 40. Kb2 {[%emt 0:00:22]} f5 {[%emt 0:00:08]} 41. Rh5 {[%emt 0:04:13]} Rg6 {[%emt 0:05:13]} 42. Kc3 {[%emt 0:08:07]} f4 {[%emt 0:00:20]} 43. Nb3 {[%emt 0:00:06]} f3 {[%emt 0:09:53]} 44. Nd2+ {[%emt 0:00:08]} Kf4 {[%emt 0:01:03]} 45. Rh4+ {[%emt 0:03:09]} Kf5 {[%emt 0:00:07]} 46. Rh8 {[%emt 0:02:13]} Ra6 {[%emt 0:04:44]} 47. Rf8+ {[%emt 0:01:08]} Kg6 {[%emt 0:01:07]} 48. Kb3 {[%emt 0:00:52]} Rd6 {[%emt 0:03:13]} 49. Nxf3 {[%emt 0:00:27]} e4 {[%emt 0:01:29]} 50. Ne5+ {[%emt 0:00:48]} Kg7 {[%emt 0:00:10]} 51. Re8 {[%emt 0:00:39]} Rh6 {[%emt 0:00:14]} 52. Ng4 {[%emt 0:01:20]} Rxh3+ {[%emt 0:00:08]} 53. Kb4 {[%emt 0:00:04]} 1-0

[Event "2nd Gujarat Open 2019"]
[Site "Ahmedabad, Gujarat"]
[Date "2019.09.28"]
[Round "9.31"]
[White "Sobh, Amrou"]
[Black "Ramakrishna, Perumalla"]
[Result "0-1"]
[ECO "A80"]
[WhiteElo "2172"]
[BlackElo "1971"]
[Annotator "NA"]
[PlyCount "92"]
[EventDate "2019.09.22"]
[EventType "swiss"]
[EventCountry "IND"]
[SourceTitle "playchess.com"]
[Source "ChessBase"]
[SourceQuality "1"]
[TimeControl "5400+30"]

1. d4 f5 {[%emt 0:00:21]} 2. Nf3 {[%emt 0:00:03]} Nf6 {[%emt 0:00:06]} 3. Bg5 {[%emt 0:00:19]} e6 {[%emt 0:00:02]} 4. Nbd2 {[%emt 0:01:02]} d5 {[%emt 0:00:06]} 5. e3 {[%emt 0:01:27]} Be7 {[%emt 0:00:53]} 6. Bxf6 {[%emt 0:01:20]} Bxf6 {[%emt 0:00:03]} 7. Bd3 {[%emt 0:00:08]} O-O {[%emt 0:01:18]} 8. c3 {[%emt 0:01:19]} Nc6 {[%emt 0:07:58]} 9. Qc2 {[%emt 0:01:35]} g6 {[%emt 0:07:28]} 10. O-O-O {[%emt 0:00:58]} Qe7 {[%emt 0:07:56]} 11. h4 {[%emt 0:00:19]} h5 {[%emt 0:03:43]} 12. Kb1 {[%emt 0:00:45]} Rb8 {[%emt 0:04:03]} 13. Nb3 {[%emt 0:05:50]} b5 {[%emt 0:07:45]} 14. Qe2 {[%emt 0:00:41]} a6 {[%emt 0:02:47]} 15. Rc1 {[%emt 0:01:45]} e5 {[%emt 0:00:31]} 16. dxe5 {[%emt 0:04:47]} Nxe5 {[%emt 0:00:50]} 17. Nbd4 {[%emt 0:02:13]} Bd7 {[%emt 0:04:10]} 18. Nxe5 Bxe5 {[%emt 0:01:52]} 19. f4 {[%emt 0:02:37]} Bg7 {[%emt 0:01:52]} 20. Qd2 {[%emt 0:08:43]} c5 {[%emt 0:03:23]} 21. Nc2 {[%emt 0:00:15]} Qf6 {[%emt 0:07:53]} 22. Ne1 {[%emt 0:01:47]} c4 {[%emt 0:13:54]} 23. Be2 {[%emt 0:00:35]} b4 {[%emt 0:00:05]} 24. Ka1 {[%emt 0:02:12]} Rfe8 {[%emt 0:04:48]} 25. Nf3 {[%emt 0:00:37]} bxc3 {[%emt 0:00:30]} 26. bxc3 {[%emt 0:01:50]} Qe6 {[%emt 0:00:15]} 27. Ne5 {[%emt 0:02:15]} Bxe5 {[%emt 0:01:44]} 28. fxe5 {[%emt 0:00:03]} Qxe5 {[%emt 0:00:10]} 29. Bf3 {[%emt 0:00:46]} Bc6 {[%emt 0:00:54]} 30. Rhe1 {[%emt 0:01:02]} Rb5 {[%emt 0:00:18]} 31. Qd4 {[%emt 0:01:12]} Qe7 {[%emt 0:05:34]} 32. Rb1 {[%emt 0:03:48]} Rxb1+ {[%emt 0:01:21]} 33. Rxb1 {[%emt 0:00:40]} Qxe3 {[%emt 0:00:27]} 34. Bxd5+ {[%emt 0:00:33]} Bxd5 {[%emt 0:00:10]} 35. Qxd5+ {[%emt 0:00:02]} Qe6 {[%emt 0:00:07]} 36. Qd4 {[%emt 0:01:18]} a5 {[%emt 0:03:02]} 37. Qa7 {[%emt 0:03:47]} Qe5 {[%emt 0:00:34]} 38. Qd4 {[%emt 0:02:06]} Qxd4 {[%emt 0:01:49]} 39. cxd4 {[%emt 0:00:02]} Re2 {[%emt 0:02:36]} 40. Rc1 {[%emt 0:00:03]} Rxg2 {[%emt 0:00:28]} 41. Rxc4 {[%emt 0:00:06]} f4 {[%emt 0:00:56]} 42. Rc3 {[%emt 0:02:40]} Rd2 {[%emt 0:00:29]} 43. Rc6 {[%emt 0:04:01]} Kf7 {[%emt 0:00:08]} 44. Rc7+ {[%emt 0:00:33]} Kf6 {[%emt 0:00:37]} 45. Rd7 {[%emt 0:00:15]} f3 {[%emt 0:00:18]} 46. Rd8 {[%emt 0:00:03]} Ke7 {[%emt 0:00:13]} 0-1

[Event "2nd Gujarat Open 2019"]
[Site "Ahmedabad, Gujarat"]
[Date "2019.09.28"]
[Round "9.32"]
[White "Harshita Guddanti"]
[Black "Priyankara, Chamil"]
[Result "1-0"]
[ECO "B06"]
[WhiteElo "2168"]
[BlackElo "1917"]
[Annotator "NA"]
[PlyCount "45"]
[EventDate "2019.09.22"]
[EventType "swiss"]
[EventCountry "IND"]
[SourceTitle "playchess.com"]
[Source "ChessBase"]
[SourceQuality "1"]
[TimeControl "5400+30"]

1. e4 {[%emt 0:00:01]} g6 {[%emt 0:02:13]} 2. d4 {[%emt 0:00:32]} Bg7 {[%emt 0:00:01]} 3. Nc3 {[%emt 0:01:56]} d6 {[%emt 0:00:31]} 4. Bg5 {[%emt 0:03:19]} c5 {[%emt 0:06:27]} 5. dxc5 {[%emt 0:02:05]} Qa5 {[%emt 0:01:22]} 6. Qd2 {[%emt 0:02:30]} Bxc3 {[%emt 0:07:08]} 7. bxc3 {[%emt 0:02:11]} Qxc5 {[%emt 0:00:52]} 8. Nf3 {[%emt 0:03:04]} Nf6 {[%emt 0:06:09]} 9. Bd3 {[%emt 0:07:34]} Nbd7 {[%emt 0:02:23]} 10. Bh6 {[%emt 0:05:27]} b6 {[%emt 0:04:36]} 11. O-O {[%emt 0:05:48]} Bb7 {[%emt 0:00:03]} 12. Rfe1 {[%emt 0:02:14]} Rg8 {[%emt 0:36:45]} 13. Bg5 {[%emt 0:08:16]} Ng4 {[%emt 0:10:04]} 14. a4 {[%emt 0:11:26]} a6 {[%emt 0:01:28]} 15. h3 {[%emt 0:02:19]} Nge5 {[%emt 0:00:03]} 16. Nxe5 {[%emt 0:00:49]} dxe5 {[%emt 0:01:10]} 17. Red1 {[%emt 0:07:40]} O-O-O {[%emt 0:05:16]} 18. Qe2 {[%emt 0:03:10]} f6 {[%emt 0:04:03]} 19. Be3 {[%emt 0:01:33]} Qxc3 {[%emt 0:03:25]} 20. Bxa6 {[%emt 0:00:26]} Nc5 {[%emt 0:00:09]} 21. Bxb7+ {[%emt 0:01:31]} Kxb7 {[%emt 0:00:19]} 22. Rdb1 {[%emt 0:01:50]} Ra8 {[%emt 0:00:42]} 23. Qb5 {[%emt 0:02:35]} 1-0

[Event "2nd Gujarat Open 2019"]
[Site "Ahmedabad, Gujarat"]
[Date "2019.09.28"]
[Round "9.33"]
[White "Saypuri Srithan"]
[Black "Soham Datar"]
[Result "1/2-1/2"]
[ECO "B52"]
[WhiteElo "1865"]
[BlackElo "2160"]
[Annotator "NA"]
[PlyCount "153"]
[EventDate "2019.09.22"]
[EventType "swiss"]
[EventCountry "IND"]
[SourceTitle "playchess.com"]
[Source "ChessBase"]
[SourceQuality "1"]
[TimeControl "5400+30"]

1. e4 {[%emt 0:00:04]} c5 {[%emt 0:00:00]} 2. Nf3 {[%emt 0:00:13]} d6 {[%emt 0:00:16]} 3. Bb5+ {[%emt 0:00:06]} Bd7 {[%emt 0:00:06]} 4. Bxd7+ {[%emt 0:00:04]} Qxd7 {[%emt 0:00:04]} 5. c4 {[%emt 0:00:03]} Nc6 {[%emt 0:00:08]} 6. Nc3 {[%emt 0:00:06]} g6 {[%emt 0:00:37]} 7. d4 {[%emt 0:00:06]} cxd4 {[%emt 0:00:04]} 8. Nxd4 {[%emt 0:00:03]} Bg7 {[%emt 0:00:04]} 9. Be3 {[%emt 0:00:04]} Nf6 {[%emt 0:00:03]} 10. f3 {[%emt 0:00:03]} O-O {[%emt 0:00:03]} 11. O-O {[%emt 0:00:07]} Rfd8 {[%emt 0:01:17]} 12. Nxc6 {[%emt 0:07:26]} bxc6 {[%emt 0:05:48]} 13. Qe2 {[%emt 0:07:39]} Qb7 {[%emt 0:04:58]} 14. Rfd1 {[%emt 0:04:52]} Rab8 {[%emt 0:01:25]} 15. Rab1 {[%emt 0:00:29]} Qa6 {[%emt 0:14:30]} 16. Bd4 {[%emt 0:09:10]} Nd7 {[%emt 0:15:27]} 17. Bxg7 {[%emt 0:00:45]} Kxg7 {[%emt 0:00:03]} 18. b3 {[%emt 0:02:01]} Qa3 {[%emt 0:01:57]} 19. Na4 {[%emt 0:07:05]} Nc5 {[%emt 0:05:52]} 20. Nxc5 {[%emt 0:03:51]} Qxc5+ {[%emt 0:02:58]} 21. Qf2 {[%emt 0:00:08]} Qxf2+ {[%emt 0:03:22]} 22. Kxf2 {[%emt 0:00:06]} c5 {[%emt 0:00:32]} 23. Rd3 {[%emt 0:03:09]} a5 {[%emt 0:05:17]} 24. Rbd1 {[%emt 0:01:30]} f6 {[%emt 0:02:27]} 25. Ke2 {[%emt 0:07:10]} Kf7 {[%emt 0:00:34]} 26. Kd2 {[%emt 0:00:11]} a4 {[%emt 0:00:13]} 27. Kc2 {[%emt 0:00:04]} axb3+ {[%emt 0:00:08]} 28. axb3 {[%emt 0:00:05]} Ra8 {[%emt 0:00:47]} 29. Kb2 {[%emt 0:00:07]} Ra7 {[%emt 0:00:48]} 30. Ra1 {[%emt 0:00:05]} Rxa1 {[%emt 0:00:16]} 31. Kxa1 {[%emt 0:00:05]} Ke6 {[%emt 0:00:31]} 32. Rd5 {[%emt 0:04:45]} Ra8+ {[%emt 0:06:21]} 33. Kb2 {[%emt 0:00:08]} Kd7 {[%emt 0:00:22]} 34. Rd1 {[%emt 0:03:47]} Ke6 {[%emt 0:00:49]} 35. Rd5 {[%emt 0:00:05]} Rc8 {[%emt 0:00:58]} 36. f4 h5 {[%emt 0:04:14]} 37. Kc3 {[%emt 0:04:59]} Ra8 {[%emt 0:01:47]} 38. Kb2 {[%emt 0:00:16]} Rg8 {[%emt 0:01:01]} 39. Kc3 {[%emt 0:06:36]} Ra8 {[%emt 0:02:53]} 40. Kb2 {[%emt 0:00:07]} h4 {[%emt 0:01:55]} 41. e5 {[%emt 0:07:37]} Rh8 {[%emt 0:02:25]} 42. exd6 {[%emt 0:00:58]} exd6 {[%emt 0:00:01]} 43. Kc3 {[%emt 0:00:20]} Ra8 {[%emt 0:02:40]} 44. Kb2 {[%emt 0:00:27]} Ra6 {[%emt 0:00:08]} 45. Kb1 Ra3 {[%emt 0:00:08]} 46. Kb2 {[%emt 0:09:23]} Ra8 {[%emt 0:00:06]} 47. Rd3 {[%emt 0:04:32]} Rh8 {[%emt 0:00:34]} 48. Kc3 {[%emt 0:01:50]} Rh7 49. Rd5 {[%emt 0:01:10]} Ra7 {[%emt 0:01:16]} 50. Kb2 {[%emt 0:00:18]} Rb7 {[%emt 0:00:27]} 51. Kc3 {[%emt 0:00:12]} Ra7 {[%emt 0:01:10]} 52. Kb2 {[%emt 0:00:33]} Rg7 {[%emt 0:01:06]} 53. Kc3 {[%emt 0:00:35]} Rg8 {[%emt 0:01:13]} 54. Kc2 {[%emt 0:02:44]} Re8 {[%emt 0:03:23]} 55. g4 {[%emt 0:03:22]} hxg3 {[%emt 0:00:28]} 56. hxg3 {[%emt 0:00:03]} f5 {[%emt 0:01:05]} 57. Rd3 {[%emt 0:00:34]} Kd7 {[%emt 0:00:41]} 58. Kd2 {[%emt 0:00:24]} Rh8 {[%emt 0:01:12]} 59. Re3 {[%emt 0:00:08]} Rh2+ {[%emt 0:01:01]} 60. Kc3 {[%emt 0:00:04]} Rg2 {[%emt 0:00:27]} 61. Kd3 {[%emt 0:00:47]} Kc6 {[%emt 0:00:06]} 62. Kc3 {[%emt 0:01:02]} Rg1 {[%emt 0:00:43]} 63. Kc2 {[%emt 0:01:18]} Rg2+ {[%emt 0:03:35]} 64. Kc3 {[%emt 0:00:03]} Rg1 {[%emt 0:01:27]} 65. Kd3 {[%emt 0:00:23]} Kb6 {[%emt 0:00:26]} 66. Kc3 {[%emt 0:00:02]} Kc6 {[%emt 0:01:58]} 67. Kd3 {[%emt 0:00:05]} Kd7 {[%emt 0:00:24]} 68. Kc3 {[%emt 0:00:32]} Rb1 {[%emt 0:00:29]} 69. Kc2 {[%emt 0:00:18]} Ra1 {[%emt 0:00:05]} 70. Kb2 {[%emt 0:00:11]} Rf1 {[%emt 0:00:06]} 71. Kc3 {[%emt 0:00:02]} Rf2 {[%emt 0:01:27]} 72. Kd3 {[%emt 0:00:05]} Rh2 {[%emt 0:01:53]} 73. Kc3 {[%emt 0:00:22]} Rh3 {[%emt 0:00:13]} 74. Kd3 {[%emt 0:00:18]} Kc6 {[%emt 0:00:04]} 75. Kd2 {[%emt 0:02:01]} Kb6 {[%emt 0:00:55]} 76. Rd3 {[%emt 0:00:14]} Kc6 {[%emt 0:01:28]} 77. Re3 {[%emt 0:00:05]} 1/2-1/2

[Event "2nd Gujarat Open 2019"]
[Site "Ahmedabad, Gujarat"]
[Date "2019.09.28"]
[Round "9.34"]
[White "Sanket Chakravarty"]
[Black "Potawad Anirudhha"]
[Result "1/2-1/2"]
[ECO "A25"]
[WhiteElo "2158"]
[BlackElo "1914"]
[Annotator "NA"]
[PlyCount "92"]
[EventDate "2019.09.22"]
[EventType "swiss"]
[EventCountry "IND"]
[SourceTitle "playchess.com"]
[Source "ChessBase"]
[SourceQuality "1"]
[TimeControl "5400+30"]

1. c4 {[%emt 0:00:00]} e5 {[%emt 0:00:00]} 2. g3 {[%emt 0:00:00]} Nc6 {[%emt 0:00:32]} 3. Bg2 {[%emt 0:00:00]} g6 {[%emt 0:00:35]} 4. Nc3 {[%emt 0:00:19]} Bg7 {[%emt 0:00:08]} 5. e4 {[%emt 0:00:48]} Nge7 {[%emt 0:00:37]} 6. Nge2 {[%emt 0:00:10]} d6 {[%emt 0:01:03]} 7. d3 {[%emt 0:00:07]} O-O {[%emt 0:00:19]} 8. O-O {[%emt 0:00:49]} f5 {[%emt 0:00:09]} 9. Be3 {[%emt 0:01:14]} Be6 {[%emt 0:02:08]} 10. Nd5 {[%emt 0:00:35]} Qd7 {[%emt 0:03:42]} 11. Qd2 {[%emt 0:02:44]} Rab8 {[%emt 0:11:10]} 12. Rac1 {[%emt 0:07:40]} b6 {[%emt 0:08:32]} 13. b4 {[%emt 0:03:15]} Nd4 {[%emt 0:03:00]} 14. Nxd4 {[%emt 0:05:52]} exd4 {[%emt 0:00:32]} 15. Bg5 {[%emt 0:00:55]} Nc6 {[%emt 0:09:31]} 16. c5 {[%emt 0:15:33]} Bxd5 {[%emt 0:07:49]} 17. exd5 {[%emt 0:00:06]} Ne5 {[%emt 0:00:08]} 18. c6 {[%emt 0:01:45]} Qc8 {[%emt 0:00:15]} 19. b5 {[%emt 0:01:36]} a6 {[%emt 0:01:05]} 20. a4 {[%emt 0:00:44]} axb5 {[%emt 0:01:47]} 21. axb5 {[%emt 0:00:05]} Ra8 {[%emt 0:00:08]} 22. Ra1 {[%emt 0:00:19]} Nf7 {[%emt 0:02:59]} 23. Bh4 h6 {[%emt 0:01:21]} 24. f4 {[%emt 0:01:13]} Re8 {[%emt 0:01:51]} 25. Rae1 {[%emt 0:01:16]} Ra3 {[%emt 0:05:40]} 26. Rxe8+ {[%emt 0:01:44]} Qxe8 {[%emt 0:00:02]} 27. Re1 {[%emt 0:00:38]} Qa8 {[%emt 0:00:28]} 28. Re7 {[%emt 0:01:37]} Ra2 {[%emt 0:02:52]} 29. Qb4 {[%emt 0:07:05]} Ra4 {[%emt 0:09:16]} 30. Qb2 {[%emt 0:04:05]} Ra2 {[%emt 0:00:21]} 31. Qb4 {[%emt 0:11:21]} Ra4 {[%emt 0:00:12]} 32. Qb2 {[%emt 0:08:45]} Ra2 {[%emt 0:00:23]} 33. Qxa2 {[%emt 0:12:08]} Qxa2 {[%emt 0:00:47]} 34. Rxc7 {[%emt 0:00:02]} Qc2 {[%emt 0:15:26]} 35. Bf1 {[%emt 0:00:48]} g5 {[%emt 0:01:42]} 36. Rb7 {[%emt 0:01:22]} Qc5 {[%emt 0:00:26]} 37. Bh3 {[%emt 0:04:03]} Qc1+ {[%emt 0:05:39]} 38. Bf1 {[%emt 0:00:04]} gxh4 {[%emt 0:03:18]} 39. Rxb6 {[%emt 0:00:01]} h3 {[%emt 0:02:10]} 40. Rb8+ {[%emt 0:00:03]} Kh7 {[%emt 0:00:01]} 41. b6 {[%emt 0:00:13]} Qe3+ {[%emt 0:00:15]} 42. Kh1 {[%emt 0:00:01]} Qe1 {[%emt 0:01:12]} 43. Kg1 {[%emt 0:00:04]} Qe3+ {[%emt 0:00:57]} 44. Kh1 {[%emt 0:00:01]} Qe1 {[%emt 0:00:01]} 45. Kg1 {[%emt 0:00:06]} Qc1 46. Kh1 Qe3 {Kg2 Qf3+ Kxh3 Qe3} 1/2-1/2

[Event "2nd Gujarat Open 2019"]
[Site "Ahmedabad, Gujarat"]
[Date "2019.09.28"]
[Round "9.35"]
[White "Chauhan, Joy"]
[Black "Aradhya, Garg"]
[Result "0-1"]
[ECO "A01"]
[WhiteElo "1872"]
[BlackElo "2157"]
[Annotator "NA"]
[PlyCount "48"]
[EventDate "2019.09.22"]
[EventType "swiss"]
[EventCountry "IND"]
[SourceTitle "playchess.com"]
[Source "ChessBase"]
[SourceQuality "1"]
[TimeControl "5400+30"]

1. b3 {[%emt 0:01:15]} d5 {[%emt 0:00:00]} 2. Bb2 {[%emt 0:00:22]} c5 {[%emt 0:03:09]} 3. e3 {[%emt 0:00:41]} Nc6 {[%emt 0:00:14]} 4. Bb5 {[%emt 0:01:53]} f6 {[%emt 0:04:20]} 5. f4 {[%emt 0:04:41]} e6 {[%emt 0:05:38]} 6. Nf3 {[%emt 0:01:44]} Bd6 {[%emt 0:05:24]} 7. O-O {[%emt 0:01:38]} Nge7 {[%emt 0:00:26]} 8. c4 {[%emt 0:02:06]} O-O {[%emt 0:00:19]} 9. Nh4 {[%emt 0:01:51]} d4 {[%emt 0:07:48]} 10. Bxc6 {[%emt 0:01:39]} Nxc6 {[%emt 0:00:27]} 11. e4 {[%emt 0:11:09]} f5 {[%emt 0:04:32]} 12. g3 {[%emt 0:08:31]} fxe4 {[%emt 0:00:06]} 13. Qe2 {[%emt 0:01:14]} e5 {[%emt 0:01:11]} 14. f5 {[%emt 0:01:18]} Be7 {[%emt 0:00:30]} 15. f6 {[%emt 0:11:42]} Rxf6 {[%emt 0:09:30]} 16. Rxf6 {[%emt 0:05:21]} Bxf6 {[%emt 0:00:08]} 17. Qxe4 {[%emt 0:03:38]} Bxh4 {[%emt 0:00:33]} 18. gxh4 {[%emt 0:00:30]} Qf6 19. d3 {[%emt 0:06:59]} Bh3 {[%emt 0:02:45]} 20. Nd2 {[%emt 0:01:31]} Rf8 {[%emt 0:00:06]} 21. Qe2 {[%emt 0:00:30]} Ne7 {[%emt 0:10:11]} 22. Ne4 {[%emt 0:09:46]} Qxh4 {[%emt 0:00:40]} 23. Ng3 {[%emt 0:00:40]} Ng6 {[%emt 0:00:50]} 24. Re1 {[%emt 0:01:15]} Nf4 0-1

[Event "2nd Gujarat Open 2019"]
[Site "Ahmedabad, Gujarat"]
[Date "2019.09.29"]
[Round "10.1"]
[White "Rozum, Ivan"]
[Black "Neelash Saha"]
[Result "1/2-1/2"]
[ECO "A40"]
[WhiteElo "2596"]
[BlackElo "2334"]
[Annotator "ChessBase"]
[PlyCount "29"]
[EventDate "2019.09.22"]
[EventType "swiss"]
[EventCountry "IND"]
[SourceTitle "playchess.com"]
[Source "ChessBase"]
[SourceQuality "1"]
[TimeControl "5400+30"]

1. d4 {[%emt 0:00:00]} Nf6 {[%emt 0:00:00]} 2. c4 {[%emt 0:00:00]} e6 {[%emt 0:00:00]} 3. g3 {[%emt 0:00:00]} d5 {[%emt 0:01:27]} 4. Nf3 {[%emt 0:00:02]} Bb4+ {[%emt 0:00:30]} 5. Bd2 {[%emt 0:01:41]} Be7 {[%emt 0:00:05]} 6. Bg2 {[%emt 0:00:11]} O-O {[%emt 0:00:08]} 7. O-O {[%emt 0:00:09]} Nbd7 {[%emt 0:00:13]} 8. Qc2 {[%emt 0:00:36]} c6 {[%emt 0:00:05]} 9. Rd1 {[%emt 0:01:50]} b6 {[%emt 0:00:06]} 10. Bf4 {[%emt 0:00:34]} Nh5 {[%emt 0:00:05]} 11. Bc1 {[%emt 0:01:01]} Nhf6 {[%emt 0:00:04]} 12. Bf4 {[%emt 0:02:43]} Nh5 {[%emt 0:00:04]} 13. Bc1 {[%emt 0:00:09]} Nhf6 {[%emt 0:00:04]} 14. Bf4 {[%emt 0:00:42]} Nh5 {[%emt 0:00:05]} 15. Bc1 {[%emt 0:00:11]} 1/2-1/2